[Event "Early-Titled-Tuesday-Blitz-September-26-2023"]
[Site "Chess.com"]
[Date "2023.09.26"]
[Round "6"]
[White "SaqoChess_Twitch"]
[Black "WPWPWP-2015"]
[Result "1-0"]
[WhiteElo "2675"]
[BlackElo "2529"]
[TimeControl "180+1"]
[EndTime "9:05:45 PDT"]
[Termination "SaqoChess_Twitch won by resignation"]

1. d4 {[%clk 0:03:00.9]} 1... Nf6 {[%clk 0:02:58.7]} 2. c4 {[%clk 0:03:00.8]}
2... e6 {[%clk 0:02:57.1]} 3. Nc3 {[%clk 0:03:01.4]} 3... Bb4 {[%clk 0:02:54]}
4. e3 {[%clk 0:03:01.7]} 4... O-O {[%clk 0:02:53.2]} 5. a3 {[%clk 0:03:02.1]}
5... Be7 {[%clk 0:02:50.4]} 6. b4 {[%clk 0:03:01.4]} 6... b6 {[%clk 0:02:48.6]}
7. Bd3 {[%clk 0:03:01.1]} 7... Bb7 {[%clk 0:02:48.2]} 8. f3 {[%clk 0:03:01.2]}
8... c5 {[%clk 0:02:41.7]} 9. bxc5 {[%clk 0:02:54.7]} 9... bxc5 {[%clk
0:02:40.7]} 10. Nge2 {[%clk 0:02:55.5]} 10... cxd4 {[%clk 0:02:39.8]} 11. exd4
{[%clk 0:02:56.4]} 11... d5 {[%clk 0:02:38.7]} 12. c5 {[%clk 0:02:55.7]} 12...
Nc6 {[%clk 0:02:37.1]} 13. Rb1 {[%clk 0:02:52.2]} 13... Qc8 {[%clk 0:02:30.3]}
14. Be3 {[%clk 0:02:49.5]} 14... Ba6 {[%clk 0:02:22.6]} 15. O-O {[%clk
0:02:48.7]} 15... Bxd3 {[%clk 0:02:20.6]} 16. Qxd3 {[%clk 0:02:49.6]} 16... Nd7
{[%clk 0:02:15.5]} 17. f4 {[%clk 0:02:49]} 17... f5 {[%clk 0:02:09.5]} 18. Kh1
{[%clk 0:02:43.8]} 18... Nf6 {[%clk 0:02:07.2]} 19. Ng1 {[%clk 0:02:41.7]} 19...
Ne4 {[%clk 0:02:04.6]} 20. Nf3 {[%clk 0:02:39.6]} 20... Bf6 {[%clk 0:01:58.1]}
21. Ne5 {[%clk 0:02:39.3]} 21... Bxe5 {[%clk 0:01:54.9]} 22. fxe5 {[%clk
0:02:38.8]} 22... Nxc3 {[%clk 0:01:46.4]} 23. Qxc3 {[%clk 0:02:38.5]} 23... Rb8
{[%clk 0:01:46.1]} 24. Qd3 {[%clk 0:02:35]} 24... Qc7 {[%clk 0:01:43.3]} 25. Qa6
{[%clk 0:02:33]} 25... Kf7 {[%clk 0:01:33.5]} 26. g4 {[%clk 0:02:31.1]} 26... g6
{[%clk 0:01:30.8]} 27. gxf5 {[%clk 0:02:30.6]} 27... exf5 {[%clk 0:01:21.4]} 28.
e6+ {[%clk 0:02:26.2]} 28... Kxe6 {[%clk 0:01:17.8]} 29. Bf4 {[%clk 0:02:26.2]}
29... Qd7 {[%clk 0:00:29.1]} 30. Bxb8 {[%clk 0:02:23.1]} 30... Kf7 {[%clk
0:00:23.8]} 31. Rb7 {[%clk 0:02:21.8]} 1-0

[Event "Early-Titled-Tuesday-Blitz-September-26-2023"]
[Site "Chess.com"]
[Date "2023.09.26"]
[Round "6"]
[White "HajiyevKanan"]
[Black "viktorskliarov"]
[Result "0-1"]
[WhiteElo "2478"]
[BlackElo "2651"]
[TimeControl "180+1"]
[EndTime "9:06:18 PDT"]
[Termination "viktorskliarov won by checkmate"]

1. d4 {[%clk 0:03:00.9]} 1... Nf6 {[%clk 0:02:59.5]} 2. Nf3 {[%clk 0:03:00.9]}
2... g6 {[%clk 0:02:59.5]} 3. g3 {[%clk 0:03:01.1]} 3... Bg7 {[%clk 0:02:59.8]}
4. Bg2 {[%clk 0:03:02]} 4... O-O {[%clk 0:03:00.4]} 5. O-O {[%clk 0:03:02.9]}
5... c6 {[%clk 0:03:00.5]} 6. b3 {[%clk 0:03:03.5]} 6... d5 {[%clk 0:02:59.9]}
7. Bb2 {[%clk 0:03:04.4]} 7... a5 {[%clk 0:02:59.8]} 8. a3 {[%clk 0:03:04]} 8...
b5 {[%clk 0:02:55.6]} 9. c4 {[%clk 0:03:02.1]} 9... bxc4 {[%clk 0:02:45.2]} 10.
bxc4 {[%clk 0:03:03]} 10... Ba6 {[%clk 0:02:43.3]} 11. c5 {[%clk 0:03:00.1]}
11... Nbd7 {[%clk 0:02:32]} 12. Re1 {[%clk 0:02:57]} 12... Rb8 {[%clk
0:02:28.2]} 13. Qc2 {[%clk 0:02:55.4]} 13... Ne4 {[%clk 0:02:16.5]} 14. Nbd2
{[%clk 0:02:54]} 14... Nxd2 {[%clk 0:01:51.8]} 15. Qxd2 {[%clk 0:02:54.9]} 15...
Nxc5 {[%clk 0:01:48.5]} 16. dxc5 {[%clk 0:02:43.9]} 16... Rxb2 {[%clk
0:01:44.7]} 17. Qg5 {[%clk 0:02:40.6]} 17... e5 {[%clk 0:01:38.8]} 18. Qxd8
{[%clk 0:02:37.4]} 18... Rxd8 {[%clk 0:01:38.3]} 19. e4 {[%clk 0:02:38.3]} 19...
dxe4 {[%clk 0:01:27.5]} 20. Ng5 {[%clk 0:02:31.1]} 20... f5 {[%clk 0:01:24.1]}
21. Rab1 {[%clk 0:02:31.5]} 21... Rdd2 {[%clk 0:01:12.2]} 22. Rxb2 {[%clk
0:02:31.1]} 22... Rxb2 {[%clk 0:01:13.1]} 23. g4 {[%clk 0:02:26.9]} 23... Bd3
{[%clk 0:01:04]} 24. gxf5 {[%clk 0:02:21.3]} 24... gxf5 {[%clk 0:01:04.9]} 25.
Bh3 {[%clk 0:02:22]} 25... Bh6 {[%clk 0:00:52.6]} 26. Ne6 {[%clk 0:02:14.8]}
26... Bd2 {[%clk 0:00:39]} 27. Rd1 {[%clk 0:02:15.3]} 27... e3 {[%clk 0:00:39]}
28. Nd8 {[%clk 0:01:46.3]} 28... e2 {[%clk 0:00:37.1]} 29. Ra1 {[%clk 0:01:47]}
29... e1=Q+ {[%clk 0:00:35.5]} 30. Rxe1 {[%clk 0:01:46.9]} 30... Bxe1 {[%clk
0:00:36.1]} 31. Nxc6 {[%clk 0:01:46.3]} 31... Bxf2+ {[%clk 0:00:36]} 32. Kh1
{[%clk 0:01:44.2]} 32... Be4+ {[%clk 0:00:35.4]} 33. Bg2 {[%clk 0:01:44.4]}
33... Rb1# {[%clk 0:00:34.5]} 0-1

[Event "Early-Titled-Tuesday-Blitz-September-26-2023"]
[Site "Chess.com"]
[Date "2023.09.26"]
[Round "6"]
[White "rikchessmx"]
[Black "ZeGood_ZeBad_ZeUgly"]
[Result "0-1"]
[WhiteElo "2350"]
[BlackElo "2290"]
[TimeControl "180+1"]
[EndTime "9:06:20 PDT"]
[Termination "ZeGood_ZeBad_ZeUgly won by resignation"]

1. e4 {[%clk 0:02:25.4]} 1... c5 {[%clk 0:02:59.9]} 2. Nf3 {[%clk 0:02:24.8]}
2... d6 {[%clk 0:02:52.5]} 3. d4 {[%clk 0:02:25.7]} 3... cxd4 {[%clk 0:02:52.1]}
4. Nxd4 {[%clk 0:02:25.3]} 4... Nf6 {[%clk 0:02:47.4]} 5. Nc3 {[%clk 0:02:26.2]}
5... Bd7 {[%clk 0:02:47.4]} 6. f4 {[%clk 0:02:23]} 6... Nc6 {[%clk 0:02:41.9]}
7. Nb3 {[%clk 0:02:22.4]} 7... g6 {[%clk 0:02:28]} 8. h3 {[%clk 0:02:21.9]} 8...
Bg7 {[%clk 0:02:25.5]} 9. Qf3 {[%clk 0:02:21.8]} 9... a5 {[%clk 0:02:20.1]} 10.
a3 {[%clk 0:02:19]} 10... a4 {[%clk 0:02:17.8]} 11. Nd2 {[%clk 0:02:18.4]} 11...
Nd4 {[%clk 0:02:14.5]} 12. Qd3 {[%clk 0:02:18.2]} 12... Nh5 {[%clk 0:02:11.8]}
13. Be2 {[%clk 0:02:10.3]} 13... Nxf4 {[%clk 0:02:10.9]} 14. Qf3 {[%clk
0:01:56.9]} 14... Nxf3+ {[%clk 0:02:10.4]} 15. Bxf3 {[%clk 0:01:54.5]} 15... e6
{[%clk 0:02:09.9]} 16. O-O {[%clk 0:01:52.7]} 16... Bd4+ {[%clk 0:02:07.8]} 17.
Kh2 {[%clk 0:01:51.7]} 17... h5 {[%clk 0:02:06.9]} 18. Nc4 {[%clk 0:01:48.6]}
18... Be5 {[%clk 0:01:55.7]} 19. g3 {[%clk 0:01:47.8]} 19... Nxh3 {[%clk
0:01:47]} 20. Kxh3 {[%clk 0:01:45.6]} 20... g5 {[%clk 0:01:42.1]} 21. Kg2 {[%clk
0:01:39.2]} 21... g4 {[%clk 0:01:40.8]} 22. Be2 {[%clk 0:01:38.8]} 22... h4
{[%clk 0:01:39]} 23. Nxe5 {[%clk 0:01:36.9]} 23... dxe5 {[%clk 0:01:36.4]} 24.
Bxg4 {[%clk 0:01:35.9]} 24... hxg3 {[%clk 0:01:34.9]} 25. Bh3 {[%clk 0:01:16.4]}
25... Qh4 {[%clk 0:01:29.9]} 26. Rh1 {[%clk 0:01:14]} 26... Bc6 {[%clk
0:01:28.2]} 27. Bd2 {[%clk 0:01:11.4]} 27... Bxe4+ {[%clk 0:01:27.4]} 28. Nxe4
{[%clk 0:01:11.4]} 28... Qxe4+ {[%clk 0:01:28.3]} 29. Kxg3 {[%clk 0:01:11.6]}
29... O-O-O {[%clk 0:01:24.2]} 30. Bg2 {[%clk 0:00:48.1]} 30... Rdg8+ {[%clk
0:01:23.4]} 0-1

[Event "Early-Titled-Tuesday-Blitz-September-26-2023"]
[Site "Chess.com"]
[Date "2023.09.26"]
[Round "6"]
[White "kleopl"]
[Black "Bodhanas"]
[Result "1-0"]
[WhiteElo "2465"]
[BlackElo "2054"]
[TimeControl "180+1"]
[EndTime "9:06:29 PDT"]
[Termination "kleopl won by checkmate"]

1. c4 {[%clk 0:03:00.9]} 1... b6 {[%clk 0:02:53.6]} 2. e4 {[%clk 0:02:59.4]}
2... Bb7 {[%clk 0:02:52.7]} 3. Nc3 {[%clk 0:02:59.3]} 3... c5 {[%clk 0:02:49.7]}
4. Nf3 {[%clk 0:02:57.3]} 4... Nc6 {[%clk 0:02:48.1]} 5. d4 {[%clk 0:02:56.3]}
5... cxd4 {[%clk 0:02:40.3]} 6. Nxd4 {[%clk 0:02:57.2]} 6... Nxd4 {[%clk
0:02:39.6]} 7. Qxd4 {[%clk 0:02:56.6]} 7... d6 {[%clk 0:02:32.7]} 8. Bg5 {[%clk
0:02:51.6]} 8... h6 {[%clk 0:02:13.7]} 9. Bh4 {[%clk 0:02:50.8]} 9... Qc7 {[%clk
0:02:08.2]} 10. Bd3 {[%clk 0:02:36.4]} 10... e5 {[%clk 0:02:01.8]} 11. Qe3
{[%clk 0:02:36.1]} 11... Be7 {[%clk 0:02:00]} 12. Bxe7 {[%clk 0:02:31.7]} 12...
Nxe7 {[%clk 0:01:59.8]} 13. O-O {[%clk 0:02:31.5]} 13... O-O {[%clk 0:01:59.4]}
14. Rac1 {[%clk 0:02:30.4]} 14... f5 {[%clk 0:01:51.3]} 15. exf5 {[%clk
0:02:27.8]} 15... Nxf5 {[%clk 0:01:50]} 16. Bxf5 {[%clk 0:02:22.8]} 16... Rxf5
{[%clk 0:01:48.1]} 17. b3 {[%clk 0:02:16.2]} 17... Raf8 {[%clk 0:01:44.5]} 18.
Rcd1 {[%clk 0:02:08.7]} 18... Qd7 {[%clk 0:01:28.6]} 19. Nb5 {[%clk 0:01:58.8]}
19... Rg5 {[%clk 0:01:24.5]} 20. f3 {[%clk 0:01:56.8]} 20... d5 {[%clk
0:01:16.1]} 21. Nxa7 {[%clk 0:01:52.4]} 21... d4 {[%clk 0:01:11.7]} 22. Qe2
{[%clk 0:01:52.3]} 22... Qf7 {[%clk 0:01:08.6]} 23. Kh1 {[%clk 0:01:48.7]} 23...
Bxf3 {[%clk 0:01:05.3]} 24. Rxf3 {[%clk 0:01:47.8]} 24... Qxa7 {[%clk
0:01:05.1]} 25. Rxf8+ {[%clk 0:01:44.3]} 25... Kxf8 {[%clk 0:01:05]} 26. Rf1+
{[%clk 0:01:44.9]} 26... Kg8 {[%clk 0:01:04.9]} 27. h4 {[%clk 0:01:32.3]} 27...
Rg6 {[%clk 0:00:53.2]} 28. Qxe5 {[%clk 0:01:32.2]} 28... Qxa2 {[%clk 0:00:47.6]}
29. Qe8+ {[%clk 0:01:31.9]} 29... Kh7 {[%clk 0:00:46.9]} 30. Qe4 {[%clk
0:01:32.3]} 30... Qxb3 {[%clk 0:00:41.2]} 31. h5 {[%clk 0:01:28.5]} 31... Qxc4
{[%clk 0:00:38.9]} 32. hxg6+ {[%clk 0:01:24.8]} 32... Kg8 {[%clk 0:00:38.2]} 33.
Qe8# {[%clk 0:01:24.2]} 1-0

[Event "Early-Titled-Tuesday-Blitz-September-26-2023"]
[Site "Chess.com"]
[Date "2023.09.26"]
[Round "6"]
[White "nikitakhoroshev"]
[Black "Dedic8"]
[Result "1-0"]
[WhiteElo "2673"]
[BlackElo "2803"]
[TimeControl "180+1"]
[EndTime "9:06:33 PDT"]
[Termination "nikitakhoroshev won by checkmate"]

1. Nf3 {[%clk 0:02:52.5]} 1... d5 {[%clk 0:02:59.6]} 2. g3 {[%clk 0:02:52.5]}
2... Nc6 {[%clk 0:02:59.4]} 3. d4 {[%clk 0:02:51.6]} 3... Bf5 {[%clk 0:03:00]}
4. a3 {[%clk 0:02:47.9]} 4... e6 {[%clk 0:02:46.6]} 5. b4 {[%clk 0:02:45.3]}
5... h6 {[%clk 0:02:43.5]} 6. Bg2 {[%clk 0:02:39]} 6... Nf6 {[%clk 0:02:43.6]}
7. Nbd2 {[%clk 0:02:34.1]} 7... b5 {[%clk 0:02:32.7]} 8. O-O {[%clk 0:02:31.9]}
8... a5 {[%clk 0:02:29.5]} 9. bxa5 {[%clk 0:02:22.7]} 9... Nxa5 {[%clk 0:02:28]}
10. Bb2 {[%clk 0:02:19.9]} 10... Be7 {[%clk 0:02:24.2]} 11. Ne5 {[%clk 0:02:20]}
11... O-O {[%clk 0:02:21.6]} 12. a4 {[%clk 0:02:16]} 12... b4 {[%clk 0:02:16.5]}
13. c4 {[%clk 0:02:14.4]} 13... bxc3 {[%clk 0:02:14.9]} 14. Bxc3 {[%clk
0:02:14.1]} 14... c5 {[%clk 0:01:53.7]} 15. Bxa5 {[%clk 0:02:06.6]} 15... Qxa5
{[%clk 0:01:54.6]} 16. Nc6 {[%clk 0:02:06.9]} 16... Qc7 {[%clk 0:01:54.4]} 17.
Nxe7+ {[%clk 0:02:07.1]} 17... Qxe7 {[%clk 0:01:55.3]} 18. dxc5 {[%clk
0:02:07.7]} 18... Qxc5 {[%clk 0:01:55.3]} 19. Qc1 {[%clk 0:02:04.4]} 19... Qb4
{[%clk 0:01:52.2]} 20. Nf3 {[%clk 0:01:47.1]} 20... Rxa4 {[%clk 0:01:43.7]} 21.
Rxa4 {[%clk 0:01:46.7]} 21... Qxa4 {[%clk 0:01:44.6]} 22. Qc5 {[%clk 0:01:41.4]}
22... Qa6 {[%clk 0:01:39.7]} 23. Nd4 {[%clk 0:01:40.9]} 23... Be4 {[%clk
0:01:32.5]} 24. Rc1 {[%clk 0:01:33.9]} 24... Bxg2 {[%clk 0:01:23.2]} 25. Kxg2
{[%clk 0:01:34.8]} 25... Ne4 {[%clk 0:01:11.9]} 26. Qe7 {[%clk 0:01:31.8]} 26...
Rc8 {[%clk 0:00:59.3]} 27. Rb1 {[%clk 0:01:21]} 27... Qa4 {[%clk 0:00:45.3]} 28.
Rb7 {[%clk 0:01:20.2]} 28... Qxd4 {[%clk 0:00:44.8]} 29. Qxf7+ {[%clk
0:01:19.1]} 29... Kh8 {[%clk 0:00:44.7]} 30. e3 {[%clk 0:01:16.9]} 30... Qd2
{[%clk 0:00:43]} 31. Qxg7# {[%clk 0:01:15.9]} 1-0

[Event "Early-Titled-Tuesday-Blitz-September-26-2023"]
[Site "Chess.com"]
[Date "2023.09.26"]
[Round "6"]
[White "Javylavilla"]
[Black "Haykoooo0o"]
[Result "1-0"]
[WhiteElo "2337"]
[BlackElo "2466"]
[TimeControl "180+1"]
[EndTime "9:06:36 PDT"]
[Termination "Javylavilla won by resignation"]

1. e4 {[%clk 0:03:00.9]} 1... c6 {[%clk 0:02:58.3]} 2. c4 {[%clk 0:02:59.2]}
2... d5 {[%clk 0:02:57.7]} 3. cxd5 {[%clk 0:02:59.5]} 3... cxd5 {[%clk
0:02:58.6]} 4. exd5 {[%clk 0:03:00]} 4... Nf6 {[%clk 0:02:58.3]} 5. Qa4+ {[%clk
0:02:59.6]} 5... Nbd7 {[%clk 0:02:52.6]} 6. Nc3 {[%clk 0:02:59.1]} 6... g6
{[%clk 0:02:52.7]} 7. Nf3 {[%clk 0:02:58.7]} 7... Bg7 {[%clk 0:02:53.3]} 8. Bc4
{[%clk 0:02:58.5]} 8... O-O {[%clk 0:02:53.6]} 9. O-O {[%clk 0:02:58.1]} 9...
Nb6 {[%clk 0:02:46.1]} 10. Qb3 {[%clk 0:02:57.6]} 10... Nxc4 {[%clk 0:02:45.9]}
11. Qxc4 {[%clk 0:02:57.8]} 11... b6 {[%clk 0:02:36.7]} 12. Ne5 {[%clk
0:02:44.2]} 12... Bb7 {[%clk 0:02:31.1]} 13. Nc6 {[%clk 0:02:43.8]} 13... Qd7
{[%clk 0:02:17.4]} 14. Re1 {[%clk 0:02:41.6]} 14... Rfe8 {[%clk 0:02:07.9]} 15.
d4 {[%clk 0:02:25.3]} 15... Rac8 {[%clk 0:01:56.5]} 16. Bg5 {[%clk 0:02:15.3]}
16... Nxd5 {[%clk 0:01:47.1]} 17. Nxd5 {[%clk 0:02:14.6]} 17... Rxc6 {[%clk
0:01:33.2]} 18. Qb5 {[%clk 0:02:12.4]} 18... e6 {[%clk 0:00:58.7]} 19. Nf6+
{[%clk 0:02:05.6]} 19... Bxf6 {[%clk 0:00:58]} 20. Bxf6 {[%clk 0:02:06.5]} 20...
Rc7 {[%clk 0:00:49.9]} 21. Qg5 {[%clk 0:02:05.8]} 21... Qd5 {[%clk 0:00:48]} 22.
Be5 {[%clk 0:02:04]} 22... Rc2 {[%clk 0:00:40.3]} 23. f3 {[%clk 0:01:59.5]}
23... f5 {[%clk 0:00:28.8]} 24. Qf6 {[%clk 0:01:43.1]} 24... Rxg2+ {[%clk
0:00:26.5]} 25. Kh1 {[%clk 0:01:42.9]} 25... Rg1+ {[%clk 0:00:04.7]} 26. Kxg1
{[%clk 0:01:41.3]} 1-0

[Event "Early-Titled-Tuesday-Blitz-September-26-2023"]
[Site "Chess.com"]
[Date "2023.09.26"]
[Round "6"]
[White "Kostukov_Alex"]
[Black "draksbg"]
[Result "0-1"]
[WhiteElo "2384"]
[BlackElo "2647"]
[TimeControl "180+1"]
[EndTime "9:06:44 PDT"]
[Termination "draksbg won by resignation"]

1. g3 {[%clk 0:02:07.8]} 1... g6 {[%clk 0:02:57.9]} 2. Bg2 {[%clk 0:02:05.7]}
2... Bg7 {[%clk 0:02:58.5]} 3. Nf3 {[%clk 0:02:04.1]} 3... c6 {[%clk 0:02:59.1]}
4. c4 {[%clk 0:02:04]} 4... d5 {[%clk 0:02:59.7]} 5. cxd5 {[%clk 0:02:04.4]}
5... cxd5 {[%clk 0:03:00.3]} 6. d4 {[%clk 0:02:05.2]} 6... Nf6 {[%clk
0:03:00.7]} 7. O-O {[%clk 0:02:06]} 7... O-O {[%clk 0:03:01.2]} 8. Nc3 {[%clk
0:02:05.4]} 8... Nc6 {[%clk 0:03:01.3]} 9. Ne5 {[%clk 0:02:05.6]} 9... Bd7
{[%clk 0:02:56.4]} 10. Bf4 {[%clk 0:02:04.8]} 10... e6 {[%clk 0:02:55.6]} 11.
Rc1 {[%clk 0:01:59.2]} 11... Rc8 {[%clk 0:02:51.1]} 12. Nxc6 {[%clk 0:01:57.9]}
12... Bxc6 {[%clk 0:02:50.7]} 13. Qb3 {[%clk 0:01:53.2]} 13... Ne8 {[%clk
0:02:49.5]} 14. Rfd1 {[%clk 0:01:47]} 14... Nd6 {[%clk 0:02:49.3]} 15. g4 {[%clk
0:01:17.9]} 15... Qd7 {[%clk 0:02:44.3]} 16. e3 {[%clk 0:01:17.4]} 16... Rfd8
{[%clk 0:02:43]} 17. Qa3 {[%clk 0:01:11.7]} 17... Nc4 {[%clk 0:02:41]} 18. Qb3
{[%clk 0:01:09.7]} 18... b5 {[%clk 0:02:36.5]} 19. a3 {[%clk 0:01:00.2]} 19...
a5 {[%clk 0:02:33]} 20. h3 {[%clk 0:00:57]} 20... Bf8 {[%clk 0:02:27.8]} 21. Bg5
{[%clk 0:00:54.3]} 21... Re8 {[%clk 0:02:16.9]} 22. Bf6 {[%clk 0:00:52.1]} 22...
b4 {[%clk 0:02:13.1]} 23. axb4 {[%clk 0:00:35.2]} 23... axb4 {[%clk 0:02:13.6]}
24. Ne2 {[%clk 0:00:34.1]} 24... Ba4 {[%clk 0:01:57.7]} 25. Qa2 {[%clk
0:00:34.1]} 25... Bxd1 {[%clk 0:01:54.2]} 26. Rxd1 {[%clk 0:00:33.8]} 26... Ra8
{[%clk 0:01:51.7]} 27. Qb1 {[%clk 0:00:31]} 27... b3 {[%clk 0:01:49.5]} 28. Nc3
{[%clk 0:00:24.3]} 28... Bb4 {[%clk 0:01:46.8]} 29. Ne2 {[%clk 0:00:21.7]} 29...
Ra2 {[%clk 0:01:46]} 30. Qd3 {[%clk 0:00:15]} 30... Rxb2 {[%clk 0:01:45.6]} 31.
Rc1 {[%clk 0:00:12.1]} 31... Rxe2 {[%clk 0:01:44.9]} 32. Qxb3 {[%clk 0:00:12.3]}
32... Rb2 {[%clk 0:01:42.1]} 33. Qd3 {[%clk 0:00:09.4]} 33... Be7 {[%clk
0:01:39.9]} 0-1

[Event "Early-Titled-Tuesday-Blitz-September-26-2023"]
[Site "Chess.com"]
[Date "2023.09.26"]
[Round "6"]
[White "stepanosinovsky"]
[Black "Gabix_94"]
[Result "0-1"]
[WhiteElo "2366"]
[BlackElo "2714"]
[TimeControl "180+1"]
[EndTime "9:06:46 PDT"]
[Termination "Gabix_94 won on time"]

1. Nf3 {[%clk 0:03:00.9]} 1... Nf6 {[%clk 0:02:54.8]} 2. g3 {[%clk 0:03:01.8]}
2... g6 {[%clk 0:02:53.5]} 3. Bg2 {[%clk 0:03:02.7]} 3... Bg7 {[%clk 0:02:54]}
4. O-O {[%clk 0:03:03.6]} 4... O-O {[%clk 0:02:54.6]} 5. d3 {[%clk 0:03:04.3]}
5... Nc6 {[%clk 0:02:54.4]} 6. e4 {[%clk 0:03:04.1]} 6... d5 {[%clk 0:02:54.2]}
7. Nbd2 {[%clk 0:03:02.8]} 7... e5 {[%clk 0:02:54.2]} 8. Re1 {[%clk 0:03:01.4]}
8... Re8 {[%clk 0:02:54.5]} 9. a4 {[%clk 0:02:59.7]} 9... a5 {[%clk 0:02:54.6]}
10. b3 {[%clk 0:02:57.9]} 10... h6 {[%clk 0:02:54.2]} 11. Bb2 {[%clk 0:02:56.3]}
11... d4 {[%clk 0:02:49.6]} 12. Nc4 {[%clk 0:02:55.5]} 12... Nd7 {[%clk
0:02:48.8]} 13. Qd2 {[%clk 0:02:48.6]} 13... Nc5 {[%clk 0:02:46.2]} 14. h3
{[%clk 0:02:45]} 14... b6 {[%clk 0:02:43.9]} 15. Nh2 {[%clk 0:02:42.6]} 15...
Be6 {[%clk 0:02:43.6]} 16. Rf1 {[%clk 0:02:04.3]} 16... Qd7 {[%clk 0:02:42]} 17.
h4 {[%clk 0:02:04]} 17... Rad8 {[%clk 0:02:31.7]} 18. Rae1 {[%clk 0:01:59.2]}
18... Kh7 {[%clk 0:02:25.2]} 19. Ba3 {[%clk 0:01:56.2]} 19... Na6 {[%clk
0:02:11.3]} 20. Bc1 {[%clk 0:01:53]} 20... Nab4 {[%clk 0:02:09.5]} 21. Kh1
{[%clk 0:01:51.9]} 21... f5 {[%clk 0:02:06.6]} 22. exf5 {[%clk 0:01:13.5]} 22...
Bxf5 {[%clk 0:02:05.2]} 23. Re2 {[%clk 0:00:49.5]} 23... Nd5 {[%clk 0:01:59.4]}
24. Ree1 {[%clk 0:00:18.6]} 24... Nc3 {[%clk 0:01:56.6]} 25. Kg1 {[%clk
0:00:17.4]} 25... e4 {[%clk 0:01:55.8]} 26. dxe4 {[%clk 0:00:13.4]} 26... Nxe4
{[%clk 0:01:54.5]} 27. Qf4 {[%clk 0:00:09]} 27... Nc3 {[%clk 0:01:55.1]} 28. h5
{[%clk 0:00:07.1]} 28... g5 {[%clk 0:01:54]} 29. Bxc6 {[%clk 0:00:05.7]} 29...
gxf4 {[%clk 0:01:54.1]} 30. Bxd7 {[%clk 0:00:05.6]} 30... Bxd7 {[%clk
0:01:54.5]} 31. Rxe8 {[%clk 0:00:04.7]} 31... Rxe8 {[%clk 0:01:54.6]} 32. Bxf4
{[%clk 0:00:01.9]} 32... Ne2+ {[%clk 0:01:53.6]} 33. Kg2 {[%clk 0:00:02.1]}
33... Nxf4+ {[%clk 0:01:54.4]} 34. gxf4 {[%clk 0:00:03]} 34... Re2 {[%clk
0:01:54.9]} 35. Rc1 {[%clk 0:00:01.8]} 35... Bf5 {[%clk 0:01:54.4]} 0-1

[Event "Early-Titled-Tuesday-Blitz-September-26-2023"]
[Site "Chess.com"]
[Date "2023.09.26"]
[Round "6"]
[White "Hasangatin_Ramil"]
[Black "Shuvalov"]
[Result "1-0"]
[WhiteElo "2704"]
[BlackElo "2471"]
[TimeControl "180+1"]
[EndTime "9:06:51 PDT"]
[Termination "Hasangatin_Ramil won on time"]

1. e4 {[%clk 0:03:00.9]} 1... e6 {[%clk 0:02:57.4]} 2. d3 {[%clk 0:03:00.5]}
2... d5 {[%clk 0:02:57.7]} 3. Qe2 {[%clk 0:03:01.1]} 3... Nf6 {[%clk 0:02:55.5]}
4. Nf3 {[%clk 0:03:00.9]} 4... c5 {[%clk 0:02:55.3]} 5. g3 {[%clk 0:03:00.1]}
5... Be7 {[%clk 0:02:55.5]} 6. Bg2 {[%clk 0:02:59.7]} 6... O-O {[%clk
0:02:55.6]} 7. O-O {[%clk 0:02:59.5]} 7... Nc6 {[%clk 0:02:55.9]} 8. e5 {[%clk
0:02:58.9]} 8... Ne8 {[%clk 0:02:56.1]} 9. c4 {[%clk 0:02:59.7]} 9... Nc7 {[%clk
0:02:55.9]} 10. Re1 {[%clk 0:02:59.6]} 10... Rb8 {[%clk 0:02:55.4]} 11. Nbd2
{[%clk 0:02:59.3]} 11... b5 {[%clk 0:02:54.3]} 12. b3 {[%clk 0:02:59.5]} 12...
bxc4 {[%clk 0:02:53.1]} 13. dxc4 {[%clk 0:02:59.5]} 13... Ba6 {[%clk 0:02:53.2]}
14. h4 {[%clk 0:02:57.1]} 14... h6 {[%clk 0:02:49.4]} 15. Nf1 {[%clk 0:02:56.9]}
15... Qd7 {[%clk 0:02:35.5]} 16. h5 {[%clk 0:02:56.5]} 16... Rfd8 {[%clk
0:02:34.4]} 17. Bf4 {[%clk 0:02:56.2]} 17... Na5 {[%clk 0:02:27.8]} 18. Rad1
{[%clk 0:02:54.8]} 18... Qe8 {[%clk 0:02:26.8]} 19. Ne3 {[%clk 0:02:52.7]} 19...
dxc4 {[%clk 0:01:59.4]} 20. bxc4 {[%clk 0:02:51.3]} 20... Nd5 {[%clk 0:01:58.3]}
21. Nxd5 {[%clk 0:02:49]} 21... exd5 {[%clk 0:01:58.1]} 22. e6 {[%clk
0:02:46.3]} 22... Rb7 {[%clk 0:01:48.6]} 23. exf7+ {[%clk 0:02:33.6]} 23... Qxf7
{[%clk 0:01:49.5]} 24. Ne5 {[%clk 0:02:33.6]} 24... Qe6 {[%clk 0:01:10]} 25.
Bxd5 {[%clk 0:02:23.7]} 25... Rxd5 {[%clk 0:00:59.8]} 26. Rxd5 {[%clk
0:02:24.6]} 26... Qxd5 {[%clk 0:00:58.6]} 27. cxd5 {[%clk 0:02:21.1]} 27... Bxe2
{[%clk 0:00:58.7]} 28. Rxe2 {[%clk 0:02:22]} 28... c4 {[%clk 0:00:06.4]} 29. Ng6
{[%clk 0:02:19.7]} 29... Kf7 {[%clk 0:00:04.1]} 30. Bd2 {[%clk 0:02:16.5]} 30...
Bb4 {[%clk 0:00:03.3]} 31. d6 {[%clk 0:01:59.9]} 31... c3 {[%clk 0:00:02.3]} 32.
Ne5+ {[%clk 0:01:53.2]} 32... Kf6 {[%clk 0:00:02.2]} 33. d7 {[%clk 0:01:47.1]}
1-0